Cogmind - Beta 13 @@@ ROGUE MODE // 2024.07.09 @ 20:20:45 Player: CrossedViper Result: Destroyed by S-43 Plague with Heavy Machine Gun Performance ------------- Evolutions (9) 4500 Regions Visited (22) 4400 Robots Destroyed (670) 3350 Value Destroyed (36243) 36243 Prototype IDs (74) 1480 Alien Tech Used (7) 1400 Bonus (20940) 20940 TOTAL SCORE: 72313 Bonus ------- Triggered High Security 500 High Alert Combat Kills 12478 Follower Combat Kills 821 Entered Garrisons 1000 Used RIF Installer 3000 Scanned by Researcher 1000 Pursued by Intercept 1000 Acquired SGEMP 2000 Friendly Fire -859 Cogmind --------- Core Integrity 0/1600 Matter 300/300 Energy 99/100 System Corruption 37% Temperature Cool (0) Movement Core (50) Location -1/Access Parts ------- > --- POWER (3) -------- (None) > --- PROPULSION (6) --- (None) > --- UTILITY (11) ----- Enhanced Optical Array Advanced Targeting Computer Relay Coupler [NC] (42) Relay Coupler [Proto] (15) > --- WEAPON (5) ------- (None) > --- INVENTORY (5) ---- Improved KE Penetrator Peak State ------------ > --- POWER ------------ Improved Quantum Reactor Improved Quantum Reactor Improved Quantum Reactor > --- PROPULSION ------- Enhanced Biometal Leg Enhanced Biometal Leg Enhanced Biometal Leg High-density Centrium Leg High-density Centrium Leg High-density Centrium Leg > --- UTILITY ---------- Experimental Heat Sink Experimental Cooling System Huge Storage Unit Long-range Terrain Scanner Experimental Core Analyzer Advanced Weapon Cycler Experimental Reaction Control System SHELL Armor Relay Coupler [NC] > --- WEAPON ----------- Sigix Shearcannon Sigix Broadsword > --- INVENTORY -------- Experimental Heat Sink Experimental Energy Well Experimental Matter Compressor Advanced Particle Charger Improved Transmission Jammer Experimental System Shield Relay Coupler [Proto] Relay Coupler [Proto] Transdimensional Reconstructor Transdimensional Reconstructor Transdimensional Reconstructor Transdimensional Reconstructor Integrity Redistributor Integrated Mediator Sigix Sheargun Sigix Sheargun Sigix Sheargun Null Cannon Sigix Shearcannon Perforator Improved Remote Datajack [Rating: 250] Favorites ----------- Power Reinforced Deuterium Engine Engine Reinforced Deuterium Engine Power Core Light Nuclear Core Reactor Improved Quantum Reactor Propulsion Centrium Leg Treads Light Treads Leg Centrium Leg Wheel Armored Wheel Flight Unit Cesium-ion Thruster Utility Huge Storage Unit Device Advanced Cooling System Storage Huge Storage Unit Processor Improved Armor Integrity Analyzer Hackware Relay Coupler [NC] Protection SHELL Armor Weapon Precision Assault Rifle Energy Gun Enhanced Quantum Rifle Energy Cannon Beam Cannon Ballistic Gun Precision Assault Rifle Ballistic Cannon Advanced Assault Cannon Launcher Grenade Launcher Special Weapon Improved Remote Datajack Slashing Weapon Sigix Broadsword Piercing Weapon Makeshift Spear Build | -11 -10 -10 -10 -8 -8 -8 -8 -7 -7 -6 -6 -5 -5 -4 -4 -4 -3 -3 -2 -2 -2 -1 ------- Run | Yrd Mat Min Sub Mat Gar Mat Gar Fac Gar Fac Gar Fac Gar Fac Arm Lab Res Tes Res Qua Sec Acc Slots Evolved 18 | . . . . 4 . . . 2 . 2 . 2 . 2 . . 2 . 2 . . 2 Power 2 | . . . . . . . . 1 . . . . . . . . . . . . . 1 Propulsion 4 | . . . . 1 . . . . . . . 1 . 2 . . . . . . . . Utility 9 | . . . . 1 . . . 1 . 2 . . . . . . 2 . 2 . . 1 Weapon 3 | . . . . 2 . . . . . . . 1 . . . . . . . . . . Parts Attached 619 | 6 8 9 22 11 35 3 25 3 17 8 13 5 32 11 61 . 69 112 16 30 43 80 Power 62 | 1 . 1 3 . 4 . 1 1 2 1 1 . 4 . 7 . 8 7 2 6 5 8 Engine 9 | 1 . . 3 . 1 . 1 1 1 . . . 1 . . . . . . . . . Core 12 | . . 1 . . 3 . . . 1 1 1 . 2 . 3 . . . . . . . Reactor 41 | . . . . . . . . . . . . . 1 . 4 . 8 7 2 6 5 8 Propulsion 111 | 2 . 2 3 2 6 . 8 . 3 . 3 1 4 1 18 . 11 16 . 8 5 18 Treads 49 | 2 . 2 3 2 4 . 8 . 3 . 3 1 4 1 5 . . 7 . . . 4 Leg 57 | . . . . . . . . . . . . . . . 13 . 11 9 . 8 5 11 Wheel 4 | . . . . . 2 . . . . . . . . . . . . . . . . 2 Hover . | . . . . . . . . . . . . . . . . . . . . . . . Flight 1 | . . . . . . . . . . . . . . . . . . . . . . 1 Utility 184 | 1 4 2 3 3 8 1 2 1 5 1 4 2 14 5 7 . 31 35 9 6 16 24 Device 120 | . . 1 . 1 6 1 1 1 3 . 3 . 9 5 5 . 21 21 8 3 13 18 Storage 16 | 1 2 . 1 1 1 . 1 . . . . . 1 . 1 . 2 4 . . . 1 Processor 11 | . . . . . . . . . 1 . . 1 . . 1 . 3 . . 1 1 3 Hackware 14 | . 1 . . . . . . . 1 . . . 1 . . . 2 3 1 2 1 2 Protection 23 | . 1 1 2 1 1 . . . . 1 1 1 3 . . . 3 7 . . 1 . Artifact . | . . . . . . . . . . . . . . . . . . . . . . . Weapon 262 | 2 4 4 13 6 17 2 14 1 7 6 5 2 10 5 29 . 19 54 5 10 17 30 Energy Gun 61 | 1 . . 2 3 4 . 1 . . . . . 2 1 10 . 3 16 2 6 6 4 Energy Cannon 77 | . 2 2 5 1 3 . 8 . 1 1 . . 1 . 6 . 12 20 2 . 4 9 Ballistic Gun 70 | 1 . . 3 2 5 . . 1 3 5 5 2 6 3 12 . 1 7 1 . . 13 Ballistic Cannon 16 | . . . . . . 2 1 . 2 . . . . . . . . 4 . 1 3 3 Launcher 10 | . 2 1 . . . . 4 . . . . . . 1 . . 1 1 . . . . Special Weapon 12 | . . . . . . . . . 1 . . . 1 . . . 2 5 . 1 1 1 Impact Weapon . | . . . . . . . . . . . . . . . . . . . . . . . Slashing Weapon 9 | . . 1 2 . . . . . . . . . . . . . . 1 . 2 3 . Piercing Weapon 7 | . . . 1 . 5 . . . . . . . . . 1 . . . . . . . Special Melee Weapon . | . . . . . . . . . . . . . . . . . . . . . . . Unidentified Prototypes 59 | . . 1 . . . . . . . 1 . . . 1 . . 7 31 2 2 8 6 Corrupted Parts 2 | . . . . . . . . . . . . . . . . . . 2 . . . . System Corruption 2 | . . . . . . . . . . . . . . . . . . 2 . . . . Parts Lost 135 | . . . 3 . 9 . 2 . . 1 3 1 3 5 6 . 25 6 2 3 8 58 Power 21 | . . . . . 2 . . . . 1 1 . 1 1 1 . 5 1 1 1 . 6 Propulsion 25 | . . . 1 . 2 . 2 . . . . . . . 1 . 5 . 1 . . 13 Utility 48 | . . . . . . . . . . . 1 . 1 1 1 . 9 4 . 1 5 25 Weapon 41 | . . . 2 . 5 . . . . . 1 1 1 3 3 . 6 1 . 1 3 14 Highest Loss Streak 29 | . . . 1 . 3 . 2 . . 1 1 1 1 5 2 . 11 2 2 2 4 29 To Critical Strikes 4 | . . . 1 . . . . . . . . . . . . . . 1 1 1 . . Average Slot Usage (%) 88 | . 96 95 90 87 95 97 99 85 92 83 88 93 80 72 88 100 91 85 77 85 79 77 Engine 4 | . 14 2 12 9 4 . 2 7 9 6 6 5 2 5 . . . . . . . . Core 3 | . . 11 1 . 4 9 6 . 4 5 5 5 6 . 4 5 . . . . . . Reactor 3 | . . . . . . . . . . . . . 1 4 4 5 7 8 7 7 7 10 Treads 14 | . 28 28 27 26 14 27 26 23 19 13 15 23 14 15 6 . . 5 12 . . . Leg 7 | . . . . . . . . . . . . . . . 17 31 27 15 . 25 26 22 Device 12 | . . . . 1 11 15 18 15 22 20 20 17 12 8 18 21 19 17 17 12 10 17 Storage 6 | . 14 14 5 9 9 9 9 7 7 6 6 5 5 5 5 5 4 4 4 4 4 3 Processor 1 | . . . . . . . . . . . . . . . 4 5 6 4 4 7 7 2 Hackware 1 | . 4 . . . . . . . . . . . . 1 . . 2 4 3 4 6 4 Protection 5 | . 8 13 14 8 6 . . . . 6 5 5 4 4 . . 1 1 4 4 4 3 Energy Gun 6 | . 4 . 9 5 17 12 3 . . . . . 3 11 17 5 2 7 12 13 4 4 Energy Cannon 7 | . 15 23 14 5 2 9 19 29 16 1 . . . . 1 10 12 8 . . 1 1 Ballistic Gun 7 | . . . 2 19 8 3 . . 6 19 25 28 25 13 4 10 3 2 7 . . 5 Ballistic Cannon 1 | . . . . . . 12 12 . 2 1 . . . . . . . . . . 1 . Naked Turns . | . . . . . . . . . . . . . . . . . . . . . . . Heaviest Build 224 | 12 94 36 46 117 101 79 134 147 154 149 141 145 212 211 213 168 184 186 195 188 197 224 Greatest Support 240 | 40 40 40 40 60 60 60 80 80 102 102 105 120 150 225 225 180 180 240 240 186 186 186 Greatest Overweight (x) 11 | . 2 . 1 1 8 1 2 1 2 1 2 1 1 . 7 . 1 1 1 1 1 11 Average Overweight (x) . | . . . . 1 2 1 1 1 1 1 1 1 . . . . . . . . . . Largest Inventory Capacity 30 | 8 25 15 25 25 25 20 25 25 25 25 25 25 30 30 30 25 25 25 25 25 25 25 Average Capacity 21 | 7 11 15 8 25 21 20 22 25 25 25 25 25 27 30 27 25 25 25 25 25 25 24 Most Carried 30 | 5 10 14 15 8 20 20 25 25 25 25 25 25 30 30 30 25 25 25 25 25 25 25 Average Carried 19 | 1 7 12 7 4 15 19 20 24 24 24 23 23 26 28 26 25 23 24 24 22 23 22 Final Capacity 30 | 8 15 15 5 25 20 20 25 25 25 25 25 25 30 30 25 25 25 25 25 25 25 5 Final Carried 28 | 1 10 14 5 8 20 20 25 24 24 25 24 22 28 28 25 25 25 25 25 22 25 1 Class Distribution -------------------- 15% | Scavenger-Tank 13% | Bothacker-Gunner 12% | Botlord-Gunner 11% | Scavenger-Gunner 10% | Subdweller-Mutant 9% | Mutant 7% | Tank 6% | Scavenger-Mutant 3% | Bothacker-Tank 3% | Botlord-Tank Dominant Class ---------------- Mutant | -10/Materials Mutant | -10/Mines Subdweller-Mutant | -10/Subcaves Subdweller-Tank | -8/Materials Scavenger-Tank | -8/Garrison Scavenger-Gunner | -8/Materials Scavenger-Gunner | -8/Garrison Gunner | -7/Factory Scavenger-Tank | -7/Garrison Tank | -6/Factory Tank | -6/Garrison Scavenger-Tank | -5/Factory Bothacker-Tank | -5/Garrison Botlord-Tank | -4/Factory Botlord-Gunner | -4/Armory Botlord-Gunner | -4/Lab Botlord-Gunner | -3/Research Bothacker-Gunner | -3/Testing Bothacker-Gunner | -2/Research Bothacker-Gunner | -2/Quarantine Bothacker-Gunner | -2/Section 7 Scavenger-Gunner | -1/Access Resources | -11 -10 -10 -10 -8 -8 -8 -8 -7 -7 -6 -6 -5 -5 -4 -4 -4 -3 -3 -2 -2 -2 -1 ----------- Run | Yrd Mat Min Sub Mat Gar Mat Gar Fac Gar Fac Gar Fac Gar Fac Arm Lab Res Tes Res Qua Sec Acc Matter Collected 21345 | 281 305 147 230 202 515 194 538 75 536 435 1163 475 2522 293 1602 . 1567 2580 938 377 1368 5002 Remotely . | . . . . . . . . . . . . . . . . . . . . . . . Salvage Created 42373 | 125 561 139 887 487 1330 339 697 75 949 466 1578 630 3567 793 3128 . 4067 2523 3354 886 3357 12435 Parts 1912 | 6 50 4 50 18 68 15 46 3 46 22 93 31 159 30 128 . 186 135 162 56 147 457 Haulers Intercepted 8 | . 2 . . . . 1 . . . . . . . . . . 1 . . . . 4 Recyclers Shooed 10 | 1 1 . . . . . . . . 1 . 1 . . . . . 1 3 . 1 1 Parts Field Recycled . | . . . . . . . . . . . . . . . . . . . . . . . Retrieved Matter . | . . . . . . . . . . . . . . . . . . . . . . . Parts Self-Destructed 12 | . . . 12 . . . . . . . . . . . . . . . . . . . Prevented . | . . . . . . . . . . . . . . . . . . . . . . . Kills | -11 -10 -10 -10 -8 -8 -8 -8 -7 -7 -6 -6 -5 -5 -4 -4 -4 -3 -3 -2 -2 -2 -1 ------- Run | Yrd Mat Min Sub Mat Gar Mat Gar Fac Gar Fac Gar Fac Gar Fac Arm Lab Res Tes Res Qua Sec Acc Combat Hostiles Destroyed 577 | . 19 4 17 10 25 1 24 1 21 9 33 9 50 13 43 . 46 31 42 10 36 133 Melee 7 | . . . 2 . 2 . . . . . . . . . . . . . 1 2 . . Guns 337 | . . . 7 8 18 . 1 1 6 9 33 9 49 11 37 . 13 10 36 8 9 72 Cannons 175 | . 2 1 8 2 5 1 8 . 14 . . . 1 . 4 . 27 14 1 . 26 61 AOE 39 | . 17 3 . . . . 13 . . . . . . 2 . . . . 4 . . . Classes Destroyed 29 | 2 6 . 3 1 3 . 2 . 1 . . . 1 1 2 . 2 2 . 1 2 . Worker 29 | . 2 . . . . . . . . . . . . . . . 3 2 5 2 1 14 Builder 30 | . . . . . . . . . . . . . . . . . 3 4 5 2 2 14 Tunneler 4 | 2 . . . . . . . . . 1 . . . . . . . . . . . 1 Hauler 8 | . 2 . . . . 1 . . . . . . . . . . 1 . . . . 4 Recycler 20 | 1 1 1 . . . 3 . . . 1 . . . 1 . . 3 1 3 1 2 2 Mechanic 7 | . . . . . . . . . . . . . . . . . 1 . . . 1 5 Operator 2 | . 1 . . . . . . . . . . 1 . . . . . . . . . . Watcher 22 | . 3 . . . 1 1 . . . 1 . 1 . . 2 . 3 1 . . 3 6 Swarmer 93 | . 6 3 4 . 11 . 7 . . 6 14 . 10 4 . . 4 4 10 . . 10 Cutter 12 | . . . . . 2 . 3 . 3 . . . 4 . . . . . . . . . Saboteur 4 | . . . . . . . . . . . . . . . 3 . . . . . . 1 Grunt 204 | . 13 . . 6 2 1 6 . 13 3 10 7 19 2 12 . 14 14 15 3 9 55 Brawler 10 | . . . . . . . . . . . . . 1 . 3 . . . . . . 6 Duelist 20 | . . . . . . . . . 1 . 4 . 1 . 1 . 2 . 1 . . 10 Protector 4 | . . . . . . . . . . . . . . 1 . . . . . . . 3 Researcher 3 | . . . . . . . . . . . . . . . . . . . . 1 2 . Sentry 44 | . . . . 4 5 . 4 1 . . . . 5 . 4 . 8 . 3 . 1 9 Specialist 17 | . . . . . . . 1 . . . . . 4 . 4 . . . . . 4 4 Hunter 44 | . . . . . 3 . 1 . . . 2 . 4 2 4 . 4 . 2 4 8 10 Programmer 73 | . . . . . 2 . . . 3 . 1 2 . 2 9 . 14 10 10 3 4 13 Heavy 1 | . . . . . . . . . . . . . . . 1 . . . . . . . Q-Series 4 | . . . . . . . . . . . . . . . . . . . . . 2 2 Behemoth 12 | . . . . . . . 2 . 1 . 2 . 2 2 1 . . . 1 . . 1 S7 Guard 1 | . . . . . . . . . . . . . . . . . . . . . 1 . Tracker 5 | . . . . . . . . . . . . . . . . . . . . . 1 4 Combat Programmer 4 | . . . . . . . . . . . . . . . . . . . . . . 4 Investigator 1 | . . . . . . . . . . . . . . . . . . . . . . 1 Striker 7 | . . . . . . . . . . . . . . . . . . 2 . . 4 1 Executioner 3 | . . . . . . . . . . . . . . . . . . . . . 3 . Alpha 7 1 | . . . . . . . . . . . . . . . . . . 1 . . . . Artisan 3 | . . . 3 . . . . . . . . . . . . . . . . . . . Cobbler 1 | . . . 1 . . . . . . . . . . . . . . . . . . . Subdweller 13 | . . . 13 . . . . . . . . . . . . . . . . . . . Infiltrator 1 | . . . . . . . . . . . . . 1 . . . . . . . . . Best Kill Streak 37 | 3 9 3 4 3 4 4 5 1 4 5 9 4 11 6 6 . 8 7 16 4 21 37 Combat Bots Only 16 | . 8 3 4 3 4 1 5 1 4 3 9 4 11 6 4 . 6 4 12 4 12 16 Max Kills in Single Turn 5 | 1 3 2 2 1 2 2 4 1 2 1 2 2 2 2 2 . 2 3 5 2 3 3 Gunslinging 1 | . . . . . 1 . . . 1 . 1 1 1 1 1 . . . 1 . . 1 Exploded 4 | . 3 2 . . . . 4 . . . . . . 2 . . . . 3 . . . Melee 1 | . . . 1 . 1 . . . . . . . . . . . . . 1 1 . . Uniques/NPCs Destroyed 2 | . . 1 . . . . . . . . . . . . 1 . . . . . . . YI-UF0 (-10/Mines) VL-GR5 (-4/Armory) Combat | -11 -10 -10 -10 -8 -8 -8 -8 -7 -7 -6 -6 -5 -5 -4 -4 -4 -3 -3 -2 -2 -2 -1 -------- Run | Yrd Mat Min Sub Mat Gar Mat Gar Fac Gar Fac Gar Fac Gar Fac Arm Lab Res Tes Res Qua Sec Acc Hostile Shots Fired 4335 | . 30 18 94 32 144 5 169 54 161 49 218 28 275 158 308 . 404 256 323 186 431 992 Missed 1220 | . 9 5 28 6 39 2 49 17 32 8 66 11 56 42 96 . 114 63 90 60 168 259 Damage Taken 59610 | . 267 378 1210 387 1316 49 1221 186 1077 667 2102 297 3423 2300 4191 . 6206 4107 3906 2626 5325 18369 Core 4408 | . 22 48 160 44 184 . 150 27 190 86 146 14 266 151 255 . 484 382 135 56 205 1403 Absorbed by Shields 2439 | . . . . . . . . 89 150 . . . . . . . . . 1570 500 130 . Reduced by Siege Mode 535 | . . . . . . . . . 20 5 56 . 7 67 211 . . 19 126 . . 24 Ignored by Resistances 1281 | . . . . . . . . . . . 220 56 181 130 299 . 101 . . . . 294 Regen/Repaired (Parts) 13016 | . 45 . . 127 . . . . . . . . . . . . . . 1266 2029 2728 6821 Core Remaining (%) 55 | 100 . . 8 . . . 31 . 69 . 72 . 72 . . 64 . 33 . . 51 . Volleys Fired 1670 | 7 36 8 87 21 62 8 99 9 77 23 64 20 118 35 113 . 159 136 77 43 128 340 Largest 5 | 2 2 2 2 4 4 4 4 4 4 4 4 5 5 5 5 . 5 5 5 5 3 5 Hottest 586 | 70 120 120 160 204 238 267 326 353 353 112 126 154 257 315 385 . 586 468 338 432 280 480 Shots Fired 4804 | 14 50 13 172 65 209 28 172 21 190 77 255 100 548 146 522 . 402 267 324 120 190 919 Gun 3599 | 14 . . 74 47 172 8 41 5 50 75 255 100 546 140 500 . 106 151 321 116 101 777 Cannon 1147 | . 27 10 98 18 37 20 125 16 140 2 . . 2 . 22 . 292 107 3 1 86 141 Launcher 38 | . 23 3 . . . . 6 . . . . . . 6 . . . . . . . . Special 20 | . . . . . . . . . . . . . . . . . 4 9 . 3 3 1 Kinetic 2206 | 7 . . 15 37 62 16 45 5 63 75 255 100 524 84 107 . 64 52 116 1 12 566 Thermal 2102 | 7 27 10 157 28 147 12 127 16 127 2 . . 22 62 415 . 327 201 201 116 89 9 Explosive 26 | . 23 3 . . . . . . . . . . . . . . . . . . . . Electromagnetic 31 | . . . . . . . . . . . . . 2 . . . 7 5 7 . 10 . Slashing 419 | . . . . . . . . . . . . . . . . . . . . . 76 343 Robot Hit Streak 36 | 7 7 8 16 13 13 4 12 8 14 18 36 10 25 12 26 . 17 15 19 8 12 26 Robot Miss Streak 13 | 2 2 . 4 3 10 3 4 3 3 2 3 4 11 8 9 . 5 8 6 3 13 12 Penetration Max 3 | . . . . . . . . . 1 . . 2 1 1 2 . 1 1 2 . 2 3 Secondary Targets 90 | . . . . . 3 . . . 1 3 15 5 17 4 8 . . . 13 2 2 17 Max Gunslinging Chain 2 | . . . . . 2 . . . 1 1 2 1 1 2 1 . . . 1 1 1 2 Shots Hit Robots 3103 | 11 14 8 119 46 148 13 90 16 100 55 208 62 371 82 301 . 237 162 206 78 122 654 Core Hits 1705 | 4 43 7 31 20 55 5 27 4 34 24 79 27 151 53 111 . 96 63 135 33 151 552 Critical Kills 104 | . . . 1 . . . 2 1 3 . 2 3 4 2 11 . 15 19 1 . 8 32 Critical Parts Destroyed 123 | . . . . . . . . . 11 . 2 4 5 3 6 . 12 14 . 1 10 55 Critical Strikes 288 | 1 . . 3 3 8 2 6 1 16 . 4 7 9 6 18 . 28 36 4 3 24 109 Burn 17 | 1 . . . 3 3 1 1 . . . . . . 1 . . 1 3 2 1 . . Meltdown 16 | . . . . . . . 2 . 1 . . . . . . . 4 9 . . . . Destroy 221 | . . . 2 . . . . 1 13 . 4 7 9 5 17 . 23 24 1 1 18 96 Blast 6 | . . . . . . 1 3 . 2 . . . . . . . . . . . . . Corrupt 1 | . . . . . . . . . . . . . . . . . . . 1 . . . Sever 21 | . . . 1 . . . . . . . . . . . . . . . . 1 6 13 Impale 6 | . . . . . 5 . . . . . . . . . 1 . . . . . . . Melee Attacks 122 | . . . 34 . 65 . . . . . . . . . 3 . . . . 9 4 7 Impact . | . . . . . . . . . . . . . . . . . . . . . . . Slashing 49 | . . . 29 . . . . . . . . . . . . . . . . 9 4 7 Piercing 73 | . . . 5 . 65 . . . . . . . . . 3 . . . . . . . Sneak Attacks 10 | . . . 8 . . . . . . . . . . . . . . . . 2 . . Combat Hostiles . | . . . . . . . . . . . . . . . . . . . . . . . Follow-up Attacks . | . . . . . . . . . . . . . . . . . . . . . . . Damage Inflicted 109663 | 153 1575 333 2989 825 3467 516 3752 397 3276 1078 3927 1243 7814 3388 9018 . 9415 4954 9823 3095 7922 30703 Guns 63977 | 153 . . 1003 593 1131 95 686 30 686 1078 3927 1222 7739 2255 8103 . 1100 2903 8147 2547 1888 18691 Cannons 37075 | . 175 141 1251 232 436 421 2235 364 2590 . . . 75 . 771 . 8199 2036 311 16 5949 11873 Explosions 4768 | . 1394 173 . . . . 831 . . . . . . 1021 29 . . . 1320 . . . Melee 3367 | . . . 735 . 1900 . . . . . . . . . 115 . . . . 532 85 . Ramming 476 | . 6 19 . . . . . 3 . . . 21 . 112 . . 116 15 45 . . 139 Kinetic 40079 | 89 . . 230 488 361 352 1420 30 1413 1078 3927 1222 7508 2032 694 . 429 1044 3664 16 128 13954 Thermal 40951 | 64 175 141 2024 337 1206 164 2332 364 1863 . . . 231 1244 8180 . 8652 3766 5945 2547 1466 250 Explosive 1596 | . 1394 173 . . . . . . . . . . . . 29 . . . . . . . Electromagnetic 766 | . . . . . . . . . . . . . 75 . . . 218 129 169 . 175 . Impact . | . . . . . . . . . . . . . . . . . . . . . . . Slashing 23468 | . . . 423 . . . . . . . . . . . . . . . . 532 6153 16360 Piercing 2327 | . . . 312 . 1900 . . . . . . . . . 115 . . . . . . . Highest Corruption 37 | . . . . . 6 3 . . . 1 1 . 2 1 12 12 29 37 7 7 21 37 Average Corruption 11 | . . . . . 5 2 . . . 1 1 . 1 1 6 12 12 31 4 7 12 16 Corruption Purged 6 | . . . . . 3 3 . . . . . . . . . . . . . . . . Corruption Blocked 11 | . . . . . . . . . . . . . . . . . 11 . . . . . Effects 556 | . . . . . 33 . . . . . 19 . 27 . 66 1 66 141 28 12 41 122 Message Errors 129 | . . . . . 9 . . . . . 5 . 6 . 19 1 19 23 6 3 9 29 Matter Fused 116 | . . . . . 8 . . . . . 2 . 7 . 16 . 10 39 7 6 5 16 Heat Flow Errors 55 | . . . . . 4 . . . . . 2 . 3 . 7 . 9 13 2 1 6 8 Energy Discharges 57 | . . . . . 6 . . . . . 3 . 2 . 4 . 7 17 4 1 2 11 Parts Rejected 9 | . . . . . . . . . . . . . . . . . 2 2 . . 3 2 Parts Fused 12 | . . . . . 1 . . . . . 1 . 1 . 1 . . 4 . . . 4 Data Loss (minor) 62 | . . . . . 4 . . . . . 5 . 2 . 6 . 5 16 4 1 8 11 Data Loss (major) 21 | . . . . . . . . . . . . . . . 4 . 6 5 3 . 1 2 Misfires 19 | . . . . . 1 . . . . . . . 2 . 3 . 5 1 . . 3 4 Alerts 6 | . . . . . . . . . . . . . . . . . . 3 . . 2 1 Misdirections 14 | . . . . . . . . . . . . . . . . . 2 1 . . 1 10 Weapon Failures 56 | . . . . . . . . . . . 1 . 4 . 6 . 1 17 2 . 1 24 Overload Shots . | . . . . . . . . . . . . . . . . . . . . . . . Overflow Damage 1825 | . 30 . 118 . 155 23 106 49 59 . . . 30 3 3 . 451 153 351 106 41 147 Projectiles 1115 | . . . 5 . . 23 71 49 59 . . . 30 . 3 . 438 153 140 . 41 103 Explosions 276 | . 30 . . . . . 35 . . . . . . . . . . . 211 . . . Melee 434 | . . . 113 . 155 . . . . . . . . 3 . . 13 . . 106 . 44 Knockbacks 44 | . . . . . . 4 3 . 4 . . . . 1 . . . 10 . . 4 18 Impact 4 | . . . . . . . . . . . . . . 1 . . . . . . . 3 Kinetic 39 | . . . . . . 4 3 . 4 . . . . . . . . 10 . . 4 14 Secondary 1 | . . . . . . . . . . . . . . . . . . . . . . 1 Self-Inflicted Damage 240 | . 42 39 . . . . 39 . . . . . . 33 . . . . 79 . . 8 Shots 10 | . 3 1 . . . . 3 . . . . . . 1 . . . . 2 . . . Rammed 20 | . 2 3 . . . . . 1 . . . 2 . 5 . . . . 2 . . 5 Targets Rammed 33 | . 2 4 . . . 1 . 1 . . . 2 . 5 . . 4 2 3 . . 9 Kicked 10 | . . . . . . . . . . . . . . . . . 4 2 . . . 4 Crushed 3 | . . 1 . . . 1 . . . . . . . . . . . . 1 . . . Highest Temperature 762 | 63 156 324 120 242 372 281 360 198 425 24 134 144 425 432 410 . 569 762 328 370 445 534 Average Temperature 112 | 32 63 127 34 90 137 137 122 80 136 15 25 50 125 180 90 . 158 117 113 111 145 104 Received Heat Transfer 7291 | . 81 . 72 198 126 27 312 55 411 117 426 81 988 331 484 . 605 611 295 240 220 1611 Effects 62 | . . 3 . . 5 . 1 . 5 . . . 3 . 2 . 19 9 . . 9 6 Shutdowns 12 | . . . . . . . . . 1 . . . . . 1 . 5 2 . . 1 2 Energy Bleed 11 | . . 1 . . 4 . 1 . . . . . . . . . 3 . . . . 2 Interference 20 | . . 1 . . . . . . 4 . . . 1 . . . 5 3 . . 6 . Matter Decay 8 | . . 1 . . 1 . . . . . . . 1 . 1 . 3 . . . 1 . Short Circuit 2 | . . . . . . . . . . . . . 1 . . . . . . . . 1 Damage (minor) 4 | . . . . . . . . . . . . . . . . . 3 . . . 1 . Damage (major) 4 | . . . . . . . . . . . . . . . . . . 4 . . . . Damage (core) 1 | . . . . . . . . . . . . . . . . . . . . . . 1 Siege Activations 18 | . . . . . . . . . 3 1 4 . 1 1 2 . . 1 3 . . 2 Total Turns 342 | . . . . . . . . . 50 13 57 . 8 15 59 . . 16 57 . . 67 Longest Duration 49 | . . . . . . . . . 21 13 28 . 8 15 31 . . 16 27 . . 49 Robots Corrupted 2 | . . . . . . . . . . . . . . . . . 1 . . . 1 . Combat Hostiles 2 | . . . . . . . . . . . . . . . . . 1 . . . 1 . Parts Fried 6 | . . . . . . . . . . . . . 1 . . . 2 . 1 . 1 1 Impact Corruptions 4 | . . . . . . . . . . . . . . 1 . . 1 . . . . 2 Robots Melted 19 | . . . . . . . 2 . 1 . . . . . 2 . 5 9 . . . . Combat Hostiles 18 | . . . . . . . 2 . 1 . . . . . 2 . 5 8 . . . . Parts Melted 134 | 1 . . 3 4 6 . 2 . 2 . . . . 3 33 . 23 44 10 1 1 1 Heat Transferred 46711 | 259 370 296 2985 962 2886 296 3085 483 2319 . . . 435 1941 8368 . 7548 4172 5709 2775 1672 150 Parts Sabotaged 9 | . . . . . . . . . . . . . . . 7 . . . . . . 2 Parts Stolen . | . . . . . . . . . . . . . . . . . . . . . . . Parts Stripped . | . . . . . . . . . . . . . . . . . . . . . . . Power Chain Reactions . | . . . . . . . . . . . . . . . . . . . . . . . Alert | -11 -10 -10 -10 -8 -8 -8 -8 -7 -7 -6 -6 -5 -5 -4 -4 -4 -3 -3 -2 -2 -2 -1 ------- Run | Yrd Mat Min Sub Mat Gar Mat Gar Fac Gar Fac Gar Fac Gar Fac Arm Lab Res Tes Res Qua Sec Acc Peak Influence 3000 | 15 570 178 . 353 1150 599 1145 600 1282 873 1429 828 2059 1217 964 . 297 338 467 228 605 3000 Initial 1080 | . 9 178 . 60 229 560 298 600 366 672 520 749 443 1080 595 . . 99 114 216 13 362 Average 609 | 2 379 79 . 190 699 533 722 577 833 753 1109 733 1074 1054 519 . 125 137 202 100 211 1268 Maximum Alert Level 5 | . 2 . . 1 4 2 4 2 4 3 4 3 5 4 3 . 1 1 2 1 2 5 Low Security (%) 26 | 100 15 100 . 54 . . . . . . . . . . . . 83 71 60 81 45 . Level 1 15 | . 27 . . 45 16 6 27 . 4 . . . . . 30 . 16 28 24 18 46 5 Level 2 20 | . 56 . . . 24 93 27 100 16 18 12 35 26 . 54 . . . 15 . 7 12 Level 3 23 | . . . . . 58 . 22 . 61 81 22 64 36 82 15 . . . . . . 30 Level 4 10 | . . . . . . . 22 . 18 . 65 . 15 17 . . . . . . . 21 Level 5 3 | . . . . . . . . . . . . . 20 . . . . . . . . 14 High Security 1 | . . . . . . . . . . . . . . . . . . . . . . 15 Max Security . | . . . . . . . . . . . . . . . . . . . . . . . Sterilizations 1 | . . . . . . . . . . . . . . . . . . . . . . 1 Squads Dispatched 119 | . 4 . . 4 . 2 . 1 . 2 . 2 . 4 12 . 7 8 11 4 13 45 Investigation 14 | . 4 . . 1 . 1 . . . 1 . 1 . 1 1 . . 2 1 . . 1 Extermination 31 | . . . . . . . . . . 1 . 1 . 1 4 . 5 5 4 2 3 5 Reinforcement 32 | . . . . 1 . . . . . . . . . 1 3 . 2 1 4 2 9 9 Assault 24 | . . . . . . . . . . . . . . 1 4 . . . . . . 19 Garrison 11 | . . . . 2 . 1 . 1 . . . . . . . . . . 2 . . 5 Intercept 7 | . . . . . . . . . . . . . . . . . . . . . 1 6 Searches Triggered . | . . . . . . . . . . . . . . . . . . . . . . . Construction Impeded 9 | . . . . . . . . . . . . . . 1 . . 1 . 3 . 1 3 Haulers Reinforced 4 | . . . . . . . . . . . . . . . . . . . . . 1 3 Active Scanning Responses . | . . . . . . . . . . . . . . . . . . . . . . . Cargo Convoy Interrupts 1 | . . . . . . . . . . . . . . . . . . . 1 . . . Alert ID Control Effect 17 | . . . . . . . . . . . . . . . . . . . . . 17 . Stealth | -11 -10 -10 -10 -8 -8 -8 -8 -7 -7 -6 -6 -5 -5 -4 -4 -4 -3 -3 -2 -2 -2 -1 --------- Run | Yrd Mat Min Sub Mat Gar Mat Gar Fac Gar Fac Gar Fac Gar Fac Arm Lab Res Tes Res Qua Sec Acc Distress Signals 28 | . 2 . . 1 . 1 . . . 1 . . . 3 3 . 3 1 2 2 2 7 Communications Jammed 79 | . . . . . . . . . . . . . . . . . 22 . 2 . 43 12 Distress Signals 74 | . . . . . . . . . . . . . . . . . 22 . 2 . 43 7 Times Spotted 917 | . 28 4 19 11 32 4 27 2 23 11 34 12 59 34 90 . 67 48 55 26 77 254 Peak Tracking Total 26 | . 6 3 3 3 5 3 4 2 4 4 7 4 7 15 11 . 9 5 14 4 13 26 Tactical Retreats 46 | . 1 . 1 . 4 1 5 . 1 . 3 . 2 . 1 . 3 3 2 1 1 17 Traps | -11 -10 -10 -10 -8 -8 -8 -8 -7 -7 -6 -6 -5 -5 -4 -4 -4 -3 -3 -2 -2 -2 -1 ------- Run | Yrd Mat Min Sub Mat Gar Mat Gar Fac Gar Fac Gar Fac Gar Fac Arm Lab Res Tes Res Qua Sec Acc Traps Triggered 37 | . 1 . 2 . . . 2 . 9 . 5 1 7 . 1 . 3 2 . 3 . 1 Indirectly . | . . . . . . . . . . . . . . . . . . . . . . . Trap Hack Attempts . | . . . . . . . . . . . . . . . . . . . . . . . Triggered . | . . . . . . . . . . . . . . . . . . . . . . . Disarmed . | . . . . . . . . . . . . . . . . . . . . . . . Reprogrammed . | . . . . . . . . . . . . . . . . . . . . . . . Reused . | . . . . . . . . . . . . . . . . . . . . . . . Traps Extracted . | . . . . . . . . . . . . . . . . . . . . . . . Installed . | . . . . . . . . . . . . . . . . . . . . . . . Triggered 3 | . . . . . . . . . . . . . . . . . . . 2 . 1 . Machines | -11 -10 -10 -10 -8 -8 -8 -8 -7 -7 -6 -6 -5 -5 -4 -4 -4 -3 -3 -2 -2 -2 -1 ---------- Run | Yrd Mat Min Sub Mat Gar Mat Gar Fac Gar Fac Gar Fac Gar Fac Arm Lab Res Tes Res Qua Sec Acc Machines Disabled 69 | . 5 1 . . 2 . 2 . 1 . 1 . 2 3 14 . 3 14 3 6 10 2 Max in Single Turn 2 | . 2 1 . . 1 . 1 . 1 . 1 . 1 2 2 . 1 2 1 1 1 2 Garrison Access 7 | . . . . . . . . . . . . . . . . . . 1 2 1 . 3 Garrison Relay 7 | . . . . . 1 . 1 . 2 . 1 . 2 . . . . . . . . . Phase Generator 2 | . . . . . . . . . 1 . . . 1 . . . . . . . . . Machines Repaired . | . . . . . . . . . . . . . . . . . . . . . . . Machines Dismantled 3 | . . . . . . . . . 2 . . . 1 . . . . . . . . . Machines Sabotaged . | . . . . . . . . . . . . . . . . . . . . . . . Overloaded Fab Kills . | . . . . . . . . . . . . . . . . . . . . . . . Hacking | -11 -10 -10 -10 -8 -8 -8 -8 -7 -7 -6 -6 -5 -5 -4 -4 -4 -3 -3 -2 -2 -2 -1 --------- Run | Yrd Mat Min Sub Mat Gar Mat Gar Fac Gar Fac Gar Fac Gar Fac Arm Lab Res Tes Res Qua Sec Acc Machines Accessed 79 | . 7 1 1 2 2 2 2 2 2 2 2 3 3 2 7 . 6 6 10 8 3 6 Terminals 54 | . 4 . . . 2 . 2 1 2 . 2 . 3 2 7 . 4 5 8 7 3 2 Fabricators . | . . . . . . . . . . . . . . . . . . . . . . . Repair Stations 3 | . 1 . . 1 . . . . . . . 1 . . . . . . . . . . Recycling Units 4 | . 2 . . . . 1 . . . 1 . . . . . . . . . . . . Scanalyzers 4 | . . . . . . . . . . . . 1 . . . . 2 . . . . 1 Garrison Access 12 | . . . . 1 . 1 . 1 . 1 . 1 . . . . . 1 2 1 . 3 Total Hacks 158 | . 16 1 3 5 3 2 3 5 3 2 3 5 5 7 19 . 11 13 22 18 5 7 Successful 76 | . 8 1 3 3 2 2 2 4 1 2 1 3 2 1 11 . 3 4 10 8 2 3 Failed 81 | . 7 . . 2 1 . 1 1 2 . 2 2 3 6 8 . 8 9 12 10 3 4 Catastrophic 19 | . 2 . . . . . . . 1 . . . . 1 2 . 3 4 2 1 . 3 Database Lockouts 1 | . 1 . . . . . . . . . . . . . . . . . . . . . Manual 40 | . 9 . . . . 1 . 2 . 1 . . . 5 5 . 1 4 5 7 . . Terminals 120 | . 12 . . . 3 . 3 4 3 . 3 . 5 7 19 . 5 12 20 17 5 2 Fabricators . | . . . . . . . . . . . . . . . . . . . . . . . Repair Stations 7 | . 2 . . 4 . . . . . . . 1 . . . . . . . . . . Recycling Units 4 | . 2 . . . . 1 . . . 1 . . . . . . . . . . . . Scanalyzers 11 | . . . . . . . . . . . . 3 . . . . 6 . . . . 2 Garrison Access 12 | . . . . 1 . 1 . 1 . 1 . 1 . . . . . 1 2 1 . 3 Terminal Hacks 49 | . 4 1 3 . 2 . 2 3 1 . 1 . 2 1 9 . 1 2 8 7 2 . Record 3 | . . . 3 . . . . . . . . . . . . . . . . . . . Robot Analysis 3 | . 1 . . . . . . . . . . . . . . . . . . 2 . . Prototype ID Bank 1 | . . . . . . . . . . . . . . . . . . . 1 . . . Open Door 4 | . . 1 . . . . . . . . . . 1 . . . . . . . 2 . Level Access Points 1 | . . . . . . . . . . . . . . . . . . . 1 . . . Branch Access Points 3 | . 1 . . . . . . . . . . . . 1 . . . . 1 . . . Emergency Access Points 5 | . 1 . . . . . 1 . 1 . . . . . 2 . . . . . . . Machine Index 1 | . . . . . . . . . . . . . . . . . . . 1 . . . Terminal Index 3 | . . . . . . . . . . . . . . . 1 . . 1 . 1 . . Alert Level 1 | . . . . . . . . . . . . . . . 1 . . . . . . . Unreport Threat 7 | . . . . . . . . 1 . . . . . . 1 . . . 3 2 . . Locate Traps 1 | . . . . . . . . . . . . . . . 1 . . . . . . . Dispatch Records 1 | . 1 . . . . . . . . . . . . . . . . . . . . . Hauler Manifests 4 | . . . . . . . . 1 . . . . . . 1 . . . . 2 . . Zone Layout 6 | . . . . . . . . 1 . . . . . . 2 . 1 1 1 . . . Garrison Registry 3 | . . . . . 1 . 1 . . . . . 1 . . . . . . . . . Patrol Navigation 1 | . . . . . . . . . . . 1 . . . . . . . . . . . Security Stations 1 | . . . . . 1 . . . . . . . . . . . . . . . . . Fabricator Hacks . | . . . . . . . . . . . . . . . . . . . . . . . Repair Station Hacks 4 | . 2 . . 2 . . . . . . . . . . . . . . . . . . Scan Component 2 | . 1 . . 1 . . . . . . . . . . . . . . . . . . Repair 2 | . 1 . . 1 . . . . . . . . . . . . . . . . . . Recycling Unit Hacks . | . . . . . . . . . . . . . . . . . . . . . . . Scanalyzer 4 | . . . . . . . . . . . . 2 . . . . 2 . . . . . Insert Component 3 | . . . . . . . . . . . . 1 . . . . 2 . . . . . Analyze 1 | . . . . . . . . . . . . 1 . . . . . . . . . . Garrison Access Hacks 12 | . . . . 1 . 1 . 1 . 1 . 1 . . . . . 1 2 1 . 3 Unlock Access 5 | . . . . 1 . 1 . 1 . 1 . 1 . . . . . . . . . . Seal Access 7 | . . . . . . . . . . . . . . . . . . 1 2 1 . 3 Unauthorized Hacks 7 | . 2 . . . . 1 . . . 1 . . . . 2 . . 1 . . . . Terminals 3 | . . . . . . . . . . . . . . . 2 . . 1 . . . . Botnet 1 | . . . . . . . . . . . . . . . 1 . . . . . . . Operators 2 | . . . . . . . . . . . . . . . 1 . . 1 . . . . Fabricators . | . . . . . . . . . . . . . . . . . . . . . . . Repair Stations . | . . . . . . . . . . . . . . . . . . . . . . . Recycling Units 4 | . 2 . . . . 1 . . . 1 . . . . . . . . . . . . Tunnel 4 | . 2 . . . . 1 . . . 1 . . . . . . . . . . . . Scanalyzers . | . . . . . . . . . . . . . . . . . . . . . . . Garrison Access . | . . . . . . . . . . . . . . . . . . . . . . . Data Cores Recovered 1 | . . . . . . . . . . . . 1 . . . . . . . . . . Used . | . . . . . . . . . . . . . . . . . . . . . . . Hacking Detections 54 | . 5 . . 1 2 1 2 2 1 1 1 2 2 2 5 . 4 5 7 7 1 3 Full Trace Events 7 | . 2 . . 1 . . . . . . . . . 1 . . . 1 1 . . 1 Feedback Events . | . . . . . . . . . . . . . . . . . . . . . . . Feedback Blocked . | . . . . . . . . . . . . . . . . . . . . . . . Robot Schematics Acquired 2 | . . . . . . . . . . . . . . . . . . . . 1 1 . Robots Built . | . . . . . . . . . . . . . . . . . . . . . . . Authchips . | . . . . . . . . . . . . . . . . . . . . . . . Time . | . . . . . . . . . . . . . . . . . . . . . . . Total Robot Build Rating . | . . . . . . . . . . . . . . . . . . . . . . . Part Schematics Acquired 17 | . . . . . . . . . . . . 1 . . . . . 1 . 4 11 . Parts Built . | . . . . . . . . . . . . . . . . . . . . . . . Authchips . | . . . . . . . . . . . . . . . . . . . . . . . Time . | . . . . . . . . . . . . . . . . . . . . . . . Total Part Build Rating . | . . . . . . . . . . . . . . . . . . . . . . . Parts Repaired 2 | . 1 . . 1 . . . . . . . . . . . . . . . . . . Time 52 | . 26 . . 26 . . . . . . . . . . . . . . . . . . Parts Recycled . | . . . . . . . . . . . . . . . . . . . . . . . Recycled Matter . | . . . . . . . . . . . . . . . . . . . . . . . Retrieved Matter . | . . . . . . . . . . . . . . . . . . . . . . . Retrieved Components . | . . . . . . . . . . . . . . . . . . . . . . . Parts Scanalyzed 2 | . . . . . . . . . . . . 1 . . . . 1 . . . . . Part Schematics Acquired 1 | . . . . . . . . . . . . 1 . . . . . . . . . . Parts Damaged 2 | . . . . . . . . . . . . 1 . . . . 1 . . . . . Bothacking | -11 -10 -10 -10 -8 -8 -8 -8 -7 -7 -6 -6 -5 -5 -4 -4 -4 -3 -3 -2 -2 -2 -1 ------------ Run | Yrd Mat Min Sub Mat Gar Mat Gar Fac Gar Fac Gar Fac Gar Fac Arm Lab Res Tes Res Qua Sec Acc Used RIF Installer 6 | . . . . . 2 . 1 . 1 . 1 . 1 . . . . . . . . . Coupler Efficiency 1 | . . . . . . . . . . . 1 . . . . . . . . . . . Threat Obfuscator 1 | . . . . . . . . . . . . . 1 . . . . . . . . . Patrol Navigation 1 | . . . . . 1 . . . . . . . . . . . . . . . . . Alert ID Control 1 | . . . . . . . 1 . . . . . . . . . . . . . . . Autoassimilate 1 | . . . . . . . . . 1 . . . . . . . . . . . . . Robots Hacked 13 | . . . . . . . . . . . . . . . . . 2 5 . 1 4 1 Non-combat 6 | . . . . . . . . . . . . . . . . . 2 3 . . 1 . Combat 7 | . . . . . . . . . . . . . . . . . . 2 . 1 3 1 Autoassimilated 2 | . . . . . . . . . . . . . . . . . . . . . 2 . Robot Hacks Applied 17 | . . . . . . . . . . . . . . . . . 4 8 . 2 2 1 parse_system 2 | . . . . . . . . . . . . . . . . . . . . 1 . 1 drop_inventory 1 | . . . . . . . . . . . . . . . . . . 1 . . . . purge_threat 5 | . . . . . . . . . . . . . . . . . 2 3 . . . . reprogram_traps 1 | . . . . . . . . . . . . . . . . . 1 . . . . . block_reporting 4 | . . . . . . . . . . . . . . . . . 1 2 . . 1 . locate_prototypes 1 | . . . . . . . . . . . . . . . . . . 1 . . . . scatter_targeting 1 | . . . . . . . . . . . . . . . . . . . . . 1 . formatsys_high 2 | . . . . . . . . . . . . . . . . . . 1 . 1 . . Relay Couplers Released 33 | . . . . . 5 . 4 . 9 . 6 . 9 . . . . . . . . . Machine Destruction 30 | . . . . . 5 . 4 . 9 . 3 . 9 . . . . . . . . . Programmers 3 | . . . . . . . . . . . 3 . . . . . . . . . . . Attached 8 | . . . . . . . . . 1 . . . . . . . 2 2 . 1 1 1 Fabnet Peak Effective % . | . . . . . . . . . . . . . . . . . . . . . . . Robots Rewired 3 | . . . . . . . . . . . . . 3 . . . . . . . . . Allies Hacked 1 | . . . . . . . . . . . . . . . . . . 1 . . . . Hacks Repelled . | . . . . . . . . . . . . . . . . . . . . . . . Allies | -11 -10 -10 -10 -8 -8 -8 -8 -7 -7 -6 -6 -5 -5 -4 -4 -4 -3 -3 -2 -2 -2 -1 -------- Run | Yrd Mat Min Sub Mat Gar Mat Gar Fac Gar Fac Gar Fac Gar Fac Arm Lab Res Tes Res Qua Sec Acc Total Allies 9 | . . . . . . . . . . . . . 5 . . . . 1 . 1 2 . Largest Group 3 | . . . . . . . . . . . . . 3 . . . . 1 . 1 2 . Highest-Rated Group 343 | . . . . . . . . . . . . . 142 . . . . 152 . 343 343 . Highest-Rated Ally 343 | . . . . . . . . . . . . . 80 . . . . 152 . 343 343 . Total Orders 5 | . . . . . . . . . . . . . . . . . . 2 . . 3 . STAY 3 | . . . . . . . . . . . . . . . . . . 1 . . 2 . FOLLOW 2 | . . . . . . . . . . . . . . . . . . 1 . . 1 . Ally Attacks 103 | . . . . . . . . . . . . . 29 . . . . 16 . . 58 . Total Damage 5863 | . . . . . . . . . . . . . 1508 . . . . 1057 . . 3298 . Kills 36 | . . . . . . . . . . . . . 9 . . . . 8 . . 19 . Allies Corrupted . | . . . . . . . . . . . . . . . . . . . . . . . Allies Melted 1 | . . . . . . . . . . . . . . . . . . 1 . . . . Intel | -11 -10 -10 -10 -8 -8 -8 -8 -7 -7 -6 -6 -5 -5 -4 -4 -4 -3 -3 -2 -2 -2 -1 ------- Run | Yrd Mat Min Sub Mat Gar Mat Gar Fac Gar Fac Gar Fac Gar Fac Arm Lab Res Tes Res Qua Sec Acc Robot Analysis Total 3 | . 1 . . . . . . . . . . . . . . . . . . 2 . . Derelict Logs Recovered 4 | . . 1 3 . . . . . . . . . . . . . . . . . . . Drone Launches . | . . . . . . . . . . . . . . . . . . . . . . . Drone Recoveries . | . . . . . . . . . . . . . . . . . . . . . . . Exploration | -11 -10 -10 -10 -8 -8 -8 -8 -7 -7 -6 -6 -5 -5 -4 -4 -4 -3 -3 -2 -2 -2 -1 ------------- Run | Yrd Mat Min Sub Mat Gar Mat Gar Fac Gar Fac Gar Fac Gar Fac Arm Lab Res Tes Res Qua Sec Acc Turns Passed 36059 | 118 1258 1163 5961 299 1810 518 1783 295 2203 545 1715 1068 2719 723 2091 11 2157 2459 1575 1347 1367 2874 Spaces Moved 15403 | 65 671 370 2527 68 559 193 537 106 730 183 609 420 941 351 1092 10 1252 1287 794 742 687 1209 Core 26 | 17 . . . . . . . . . . . . . . . . . . . . . 9 Treads 9511 | 48 671 370 2527 68 146 193 537 106 730 183 609 420 941 351 334 . . 467 794 3 . 13 Legs 5425 | . . . . . . . . . . . . . . . 758 10 1252 820 . 739 687 1159 Wheels 417 | . . . . . 413 . . . . . . . . . . . . . . . . 4 Hover . | . . . . . . . . . . . . . . . . . . . . . . . Flight 24 | . . . . . . . . . . . . . . . . . . . . . . 24 Fastest Speed 35 | 50 160 160 160 253 120 240 240 246 243 245 240 236 160 160 120 120 112 120 160 120 110 35 Average Speed 173 | 131 163 160 164 253 157 240 257 246 245 245 242 236 236 160 142 120 122 142 160 145 130 157 Slowest Speed 680 | 160 320 160 250 253 253 240 320 246 320 245 320 236 240 160 610 120 190 240 240 240 190 680 Overloaded Moves . | . . . . . . . . . . . . . . . . . . . . . . . Propulsion Burnouts . | . . . . . . . . . . . . . . . . . . . . . . . Robots Hopped 5 | . . . . . . . . . . . . . . . . . . . . . . 5 Cave-ins Triggered 1 | . . . . . . . . . . . . . . . . . . . . . . 1 Teleports 5 | . . . . . . . . . . . . . . . . . . . . . 3 2 Exploration Rate (%) 48 | 5 85 79 91 6 66 24 56 5 73 8 71 13 94 14 87 6 41 94 25 77 52 39 Regions Visited 22 Branch Regions 7 Pre-discovered Areas 6 | . 2 1 1 . . 1 . . . 1 . . . . . . . . . . . . Known Exits Taken 10 | . 1 . . 1 . 1 . 1 . 1 . 1 . 1 . . 1 . 1 . 1 . Unknown Exits Taken 7 | 1 . 1 1 . . . . . . . . . . . 1 1 . 1 . 1 . . Scrap Searched 11 | . . 1 10 . . . . . . . . . . . . . . . . . . . Spaces Dug 148 | . 17 8 3 . 1 . 53 . . 2 . . . 21 5 . 2 10 12 . 2 12 Terrain Destroyed 840 | . 168 10 11 1 1 4 60 4 8 2 . 1 30 85 57 . 88 45 64 13 26 162 Melee 8 | . . . 1 . 1 . . . . . . . . . . . . . . . . 6 Projectile 370 | . . . 10 1 . 4 14 4 8 2 . . 29 15 32 . 85 33 48 12 12 61 AOE 345 | . 168 10 . . . . 46 . . . . . . 69 22 . . . 12 . . 18 Terrain Rammed . | . . . . . . . . . . . . . . . . . . . . . . . Walls Destroyed . | . . . . . . . . . . . . . . . . . . . . . . . Machines Disabled . | . . . . . . . . . . . . . . . . . . . . . . . Actions | -11 -10 -10 -10 -8 -8 -8 -8 -7 -7 -6 -6 -5 -5 -4 -4 -4 -3 -3 -2 -2 -2 -1 --------- Run | Yrd Mat Min Sub Mat Gar Mat Gar Fac Gar Fac Gar Fac Gar Fac Arm Lab Res Tes Res Qua Sec Acc Total 21996 | 83 782 924 4122 144 1271 230 807 122 959 227 726 456 1226 445 1376 9 1649 1749 979 930 1016 1764 Wait 3285 | . 46 526 1402 35 510 19 110 3 43 5 24 2 28 31 49 . 110 65 66 67 85 59 Move 15377 | 64 670 369 2526 68 558 193 536 106 729 183 608 420 940 350 1091 9 1251 1286 793 741 686 1200 Hop 4 | . . . . . . . . . . . . . . . . . . . . . . 4 Pick Up 295 | 6 14 5 14 6 24 2 13 . 15 3 4 3 36 5 20 . 15 32 10 16 27 25 Fast Attach 276 | 1 1 2 5 6 14 2 10 1 8 5 5 1 10 5 36 . 33 73 5 7 17 29 Attach 211 | 5 2 2 5 3 6 1 3 1 7 1 5 4 16 5 14 . 20 25 7 14 22 43 Detach 58 | . . 1 . . 1 . . . . 1 . 1 3 . 2 . 8 13 1 3 10 14 Swap 139 | . 5 5 12 2 15 . 12 1 2 2 3 . 6 1 11 . 16 14 4 10 8 10 Drop 397 | . 6 2 26 3 16 4 20 . 23 3 5 3 37 8 37 . 22 102 13 15 29 23 Fire 1670 | 7 36 8 87 21 62 8 99 9 77 23 64 20 118 35 113 . 159 136 77 43 128 340 Melee 122 | . . . 34 . 65 . . . . . . . . . 3 . . . . 9 4 7 Ram 6 | . . . . . . . . . . . . . . . . . 1 . . . . 5 Kick 10 | . . . . . . . . . . . . . . . . . 4 2 . . . 4 Crush 19 | . 2 4 . . . 1 . 1 . . . 2 . 5 . . . . 3 . . 1 Escape Stasis 49 | . . . . . . . 4 . 14 . 8 . 8 . . . 10 . . 5 . . Rewire 16 | . . . . . . . . . . . . . 15 . . . . 1 . . . . Trap . | . . . . . . . . . . . . . . . . . . . . . . . Miscellaneous 62 | . . . 11 . . . . . 41 1 . . 9 . . . . . . . . . Route ------- -11/Scrapyard -10/Materials (discovered 4 exits: [*Mat x2] / *Min x2) -10/Mines (discovered 3 exits: [*Mat x2] / *Sub) -10/Subcaves (discovered 3 exits: *Mat x2 / [*Rec]) -8/Materials -8/Garrison (discovered 3 exits: *Mat x3) -8/Materials -8/Garrison (discovered 3 exits: *Fac x3) -7/Factory -7/Garrison (discovered 3 exits: *Fac x3) -6/Factory -6/Garrison (discovered 3 exits: *Fac x3) -5/Factory (discovered 2 exits: *Upp / Gar) -5/Garrison (discovered 3 exits: *Fac x3) -4/Factory (discovered 3 exits: Upp x2 / *Arm) -4/Armory (discovered 3 exits: *Res x2 / [*Lab]) -4/Lab -3/Research -3/Testing -2/Research (discovered 5 exits: *Acc x3 / *Qua x2) -2/Quarantine (discovered 2 exits: *Acc / *Sec) -2/Section 7 -1/Access History --------- Turn | Location | Event 10 | -11/Scrapyard | Discovered new exit (range 14) 119 | -11/Scrapyard | Entered Materials 237 | -10/Materials | Discovered new exit (range 14) 311 | -10/Materials | Build established: Mutant 342 | -10/Materials | Destroyed 8 combat bots 344 | -10/Materials | Central database locked down 427 | -10/Materials | Identified exit to Mines 458 | -10/Materials | Discovered new exit (range 16) 994 | -10/Materials | Discovered new exit (range 16) 1235 | -10/Materials | Repaired Grenade Launcher 1377 | -10/Materials | Entered Mines 1420 | -10/Mines | Met a Derelict who couldn't figure out how to use a Trap Extractor 1837 | -10/Mines | Discovered new exit (range 11) 1846 | -10/Mines | Destroyed YI-UF0 2013 | -10/Mines | Learned location of Zion (-6) 2018 | -10/Mines | Discovered new exit (range 9) 2040 | -10/Mines | Found a damaged Exp. Sensor Array with a note attached 2047 | -10/Mines | Found Prototype Device 2047 | -10/Mines | Identified Exp. Sensor Array 2513 | -10/Mines | Discovered new exit (range 8) 2540 | -10/Mines | Entered Subcaves 2548 | -10/Subcaves | Learned Materials security intel 2623 | -10/Subcaves | Shifting Twisted Machinery released Humpback 2625 | -10/Subcaves | Shifting Twisted Machinery released Spk. Treads 2914 | -10/Subcaves | Core integrity fell below 50% 3006 | -10/Subcaves | A swath of the cavern ceiling suddenly collapsed 3383 | -10/Subcaves | Learned Materials security intel 3647 | -10/Subcaves | Build established: Scavenger-Mutant 4237 | -10/Subcaves | Discovered new exit (range 7) 4406 | -10/Subcaves | Core integrity fell below 20% 4476 | -10/Subcaves | Shifting Twisted Machinery released Flamer 4484 | -10/Subcaves | Shifting Twisted Machinery released Battle Rifle 4491 | -10/Subcaves | Discovered new exit (range 5) 4499 | -10/Subcaves | Visited Clippyterm 4876 | -10/Subcaves | Disturbed a concealed Subdweller 5075 | -10/Subcaves | Shifting Twisted Machinery released Sub. Monowheel 5152 | -10/Subcaves | Shifting Twisted Machinery released Flamer 5164 | -10/Subcaves | Disturbed a concealed Subdweller 5209 | -10/Subcaves | Build established: Subdweller-Mutant 6438 | -10/Subcaves | Ambushed by angry Subdweller bent on revenge 6497 | -10/Subcaves | A swath of the cavern ceiling suddenly collapsed 7483 | -10/Subcaves | Discovered new exit (range 16) 8501 | -10/Subcaves | Entered Materials 8501 | -8/Materials | Evolved 4 slots: Propulsion x1, Utility x1, Weapon x2 8617 | -8/Materials | Repaired Lgt. Treads 8636 | -8/Materials | Garrison activated, responded to threat 8799 | -8/Materials | Identified exit to Garrison 8800 | -8/Materials | Entered Garrison 8884 | -8/Garrison | Triggered checkpoint 8933 | -8/Garrison | Discovered new exit (range 58) 8933 | -8/Garrison | Discovered new exit (range 38) 8933 | -8/Garrison | Discovered new exit (range 70) 9028 | -8/Garrison | Build established: Scavenger-Tank 9090 | -8/Garrison | Triggered checkpoint 9251 | -8/Garrison | Installed Relay Interface Framework 9300 | -8/Garrison | Triggered checkpoint 9345 | -8/Garrison | Learned Materials security intel 9433 | -8/Garrison | Triggered checkpoint 9495 | -8/Garrison | Garrison Relay disabled 9514 | -8/Garrison | Triggered checkpoint 9930 | -8/Garrison | Build established: Scavenger-Mutant 10157 | -8/Garrison | Expanded RIF knowledge: Patrol Navigation 10237 | -8/Garrison | Triggered checkpoint 10352 | -8/Garrison | Triggered checkpoint 10404 | -8/Garrison | Lost 3 parts (2n1w) 10610 | -8/Garrison | Entered Materials 10674 | -8/Materials | Build established: Scavenger-Gunner 11059 | -8/Materials | Garrison activated, responded to threat 11128 | -8/Materials | Identified exit to Garrison 11128 | -8/Materials | Entered Garrison 11274 | -8/Garrison | Triggered checkpoint 11381 | -8/Garrison | Discovered new exit (range 10) 11410 | -8/Garrison | Discovered new exit (range 93) 11410 | -8/Garrison | Discovered new exit (range 60) 11410 | -8/Garrison | Discovered new exit (range 6) 11657 | -8/Garrison | Triggered checkpoint 11678 | -8/Garrison | Spotted B-75 Beast 11754 | -8/Garrison | Destroyed B-75 Beast 11755 | -8/Garrison | Core integrity fell below 50% 12163 | -8/Garrison | Triggered checkpoint 12211 | -8/Garrison | Build established: Gunner 12348 | -8/Garrison | Spotted B-75 Beast 12399 | -8/Garrison | Destroyed B-75 Beast 12496 | -8/Garrison | Triggered checkpoint 12582 | -8/Garrison | Expanded RIF knowledge: Alert ID Control 12713 | -8/Garrison | Build established: Scavenger-Gunner 12911 | -8/Garrison | Entered Factory 12911 | -7/Factory | Evolved 2 slots: Power x1, Utility x1 13030 | -7/Factory | Build established: Gunner 13160 | -7/Factory | Garrison activated, responded to threat 13206 | -7/Factory | Identified exit to Garrison 13206 | -7/Factory | Entered Garrison 13344 | -7/Garrison | Triggered checkpoint 13411 | -7/Garrison | Garrison Relay disabled 13578 | -7/Garrison | Triggered checkpoint 13581 | -7/Garrison | Triggered checkpoint 13611 | -7/Garrison | Build established: Scavenger-Tank 13787 | -7/Garrison | Expanded RIF knowledge: Autoassimilate 13802 | -7/Garrison | Discovered new exit (range 10) 14135 | -7/Garrison | Spotted B-75 Beast 14277 | -7/Garrison | Discovered new exit (range 11) 14323 | -7/Garrison | Destroyed B-75 Beast 14737 | -7/Garrison | Build established: Tank 14874 | -7/Garrison | Triggered checkpoint 15007 | -7/Garrison | Discovered new exit (range 13) 15161 | -7/Garrison | Phase Generator disabled 15220 | -7/Garrison | Garrison Relay disabled 15409 | -7/Garrison | Entered Factory 15409 | -6/Factory | Evolved 2 slots: Utility x2 15954 | -6/Factory | Identified exit to Garrison 15954 | -6/Factory | Entered Garrison 16013 | -6/Garrison | Expanded RIF knowledge: Coupler Efficiency 16128 | -6/Garrison | Triggered checkpoint 16183 | -6/Garrison | Destroyed 9 combat bots 16294 | -6/Garrison | Spotted B-75 Beast 16435 | -6/Garrison | Garrison Relay disabled 16480 | -6/Garrison | Triggered checkpoint 16544 | -6/Garrison | Triggered checkpoint 16681 | -6/Garrison | Discovered new exit (range 14) 16781 | -6/Garrison | Spotted B-75 Beast 16848 | -6/Garrison | Destroyed B-75 Beast 16971 | -6/Garrison | Destroyed B-75 Beast 17072 | -6/Garrison | Found Quantum Capacitor 17195 | -6/Garrison | Discovered new exit (range 9) 17300 | -6/Garrison | Triggered checkpoint 17326 | -6/Garrison | Build established: Scavenger-Tank 17408 | -6/Garrison | Triggered checkpoint 17599 | -6/Garrison | Discovered new exit (range 12) 17669 | -6/Garrison | Entered Factory 17669 | -5/Factory | Evolved 2 slots: Propulsion x1, Weapon x1 17905 | -5/Factory | Discovered new exit (range 16) 18315 | -5/Factory | Identified exit to Upper Caves 18737 | -5/Factory | Identified exit to Garrison 18737 | -5/Factory | Entered Garrison 18780 | -5/Garrison | Expanded RIF knowledge: Threat Obfuscation 18959 | -5/Garrison | Phase Generator disabled 18991 | -5/Garrison | Triggered checkpoint 19097 | -5/Garrison | Spotted B-75 Beast 19114 | -5/Garrison | Destroyed B-75 Beast 19173 | -5/Garrison | Triggered checkpoint 19325 | -5/Garrison | Destroyed 7 combat bots 19438 | -5/Garrison | Found embedded Infiltrators 19922 | -5/Garrison | Discovered new exit (range 9) 19975 | -5/Garrison | Triggered checkpoint 19981 | -5/Garrison | Garrison Relay disabled 20146 | -5/Garrison | Spotted B-75 Beast 20157 | -5/Garrison | Destroyed B-75 Beast 20283 | -5/Garrison | Build established: Bothacker-Tank 20311 | -5/Garrison | Found Enh. Force Lance 20361 | -5/Garrison | Triggered checkpoint 20440 | -5/Garrison | Discovered new exit (range 12) 20465 | -5/Garrison | Triggered checkpoint 20514 | -5/Garrison | Lost 3 allies 20542 | -5/Garrison | Destroyed 11 combat bots 20641 | -5/Garrison | Destroyed 7 combat bots 20690 | -5/Garrison | Garrison Relay disabled 20891 | -5/Garrison | Triggered checkpoint 21116 | -5/Garrison | Found Unknown Hackware 21120 | -5/Garrison | Found Unknown Hackware 21123 | -5/Garrison | Found Unknown Hackware 21126 | -5/Garrison | Found Unknown Hackware 21231 | -5/Garrison | Discovered new exit (range 12) 21299 | -5/Garrison | Triggered checkpoint 21346 | -5/Garrison | Discovered new exit (range 70) 21346 | -5/Garrison | Discovered new exit (range 34) 21346 | -5/Garrison | Discovered new exit (range 73) 21422 | -5/Garrison | Build established: Botlord-Tank 21456 | -5/Garrison | Entered Factory 21456 | -4/Factory | Evolved 2 slots: Propulsion x2 21551 | -4/Factory | Identified exit to Upper Caves 21551 | -4/Factory | Identified exit to Armory 21729 | -4/Factory | Spotted B-86 Titan 21793 | -4/Factory | Destroyed B-86 Titan 21956 | -4/Factory | First assault squad dispatched 22016 | -4/Factory | Spotted B-86 Titan 22021 | -4/Factory | Destroyed B-86 Titan 22179 | -4/Factory | Entered Armory 22180 | -4/Armory | Met VL-GR5, who suggested a friendly competition 22208 | -4/Armory | Lost 5 parts (1p1u3w) 22358 | -4/Armory | Lost the competition with VL-GR5 22426 | -4/Armory | Attacked by VL-GR5 22429 | -4/Armory | First assault squad dispatched 22517 | -4/Armory | VL-GR5 did not survive their latest romp through Armory 22517 | -4/Armory | Destroyed VL-GR5 22553 | -4/Armory | Discovered new exit (range 5) 22780 | -4/Armory | Build established: Botlord-Gunner 23579 | -4/Armory | System corruption reached 10% 23824 | -4/Armory | Spotted B-86 Titan 23856 | -4/Armory | Destroyed B-86 Titan 24129 | -4/Armory | Discovered new exit (range 3) 24198 | -4/Armory | Discovered new exit (range 4) 24270 | -4/Armory | Entered Lab 24270 | -4/Lab | Discovered new exit (range 9) 24281 | -4/Lab | Entered Research 24281 | -3/Research | Evolved 2 slots: Utility x2 25193 | -3/Research | Identified Relay Coupler [Proto] (x4) 25841 | -3/Research | System corruption reached 10% 25951 | -3/Research | Lost 11 parts (1p3n3u4w) 26165 | -3/Research | Discovered new exit (range 7) 26174 | -3/Research | Identified exit to Testing 26281 | -3/Research | Found Heavy Servo Lattice 26438 | -3/Research | Entered Testing 26568 | -3/Testing | Found Prototype Ballistic Cannon 26568 | -3/Testing | Identified Perforator 26760 | -3/Testing | System corruption reached 30% 26761 | -3/Testing | Spotted Alpha 7 26762 | -3/Testing | Assimilated Alpha 7 with formatsys_high 26838 | -3/Testing | Found Prototype Energy Gun 26838 | -3/Testing | Identified Tachyon Dispersion Ray 26939 | -3/Testing | Found Prototype Device 26939 | -3/Testing | Identified Exp. Hardlight Generator 27035 | -3/Testing | Found Prototype Hackware 27065 | -3/Testing | Core integrity fell below 50% 27394 | -3/Testing | Found Ghost Barrier 27568 | -3/Testing | Found Prototype Energy Cannon 27568 | -3/Testing | Identified Disintegrator 27629 | -3/Testing | Build established: Bothacker-Gunner 27630 | -3/Testing | Spotted Striker 27632 | -3/Testing | Spotted Striker 27645 | -3/Testing | Found Prototype Energy Cannon 27645 | -3/Testing | Identified Imp. Potential Cannon 27682 | -3/Testing | Destroyed Striker 27689 | -3/Testing | Destroyed Striker 27691 | -3/Testing | Spotted Alpha 7 27699 | -3/Testing | Destroyed Alpha 7 27724 | -3/Testing | Found Prototype Energy Gun 27724 | -3/Testing | Identified Enh. Gamma Rifle 27762 | -3/Testing | Found Prototype Ballistic Gun 27762 | -3/Testing | Identified Multirail 27803 | -3/Testing | Stole the SGEMP Prototype 27941 | -3/Testing | Found Prototype Hackware 28091 | -3/Testing | Discovered new exit (range 10) 28329 | -3/Testing | Found Prototype Device 28329 | -3/Testing | Identified Femtoactuators 28354 | -3/Testing | Found Prototype Slashing Weapon 28354 | -3/Testing | Identified Vibroblade 28385 | -3/Testing | Found Prototype Energy Cannon 28385 | -3/Testing | Identified Null Cannon 28664 | -3/Testing | Found Multirail 28820 | -3/Testing | Found Prototype Protection 28820 | -3/Testing | Identified SHELL Armor 28897 | -3/Testing | Entered Research 28897 | -2/Research | Evolved 2 slots: Utility x2 28912 | -2/Research | Identified System Mapper 29395 | -2/Research | Identified exit to Access 29599 | -2/Research | Spotted B-90 Cyclops 29613 | -2/Research | Destroyed B-90 Cyclops 29793 | -2/Research | Garrison activated, responded to threat 30059 | -2/Research | Identified exit to Quarantine 30400 | -2/Research | Destroyed 12 combat bots 30464 | -2/Research | Cargo convoy interrupted 30472 | -2/Research | Entered Quarantine 30565 | -2/Quarantine | Found Alien Artifact 30712 | -2/Quarantine | Found Alien Slashing Weapon 30712 | -2/Quarantine | Identified Sigix Broadsword 30922 | -2/Quarantine | Scanned by Researcher 30968 | -2/Quarantine | Found Alien Artifact 30978 | -2/Quarantine | Identified Dimensional Node Initializer 30978 | -2/Quarantine | Initialized slip node 30982 | -2/Quarantine | Found Alien Artifact 30995 | -2/Quarantine | Found Alien Artifact 30999 | -2/Quarantine | Found Alien Artifact 31373 | -2/Quarantine | Discovered exit to Access (range 16) 31670 | -2/Quarantine | Spotted Fortress 31672 | -2/Quarantine | Assimilated Fortress with formatsys_high 31762 | -2/Quarantine | Discovered new exit (range 6) 31819 | -2/Quarantine | Entered Section 7 31819 | -2/Section 7 | Accompanied by 1 ally 31979 | -2/Section 7 | Found Alien Artifact 32196 | -2/Section 7 | Spotted S7 Guard 32226 | -2/Section 7 | Destroyed S7 Guard 32283 | -2/Section 7 | System corruption reached 10% 32289 | -2/Section 7 | Identified Hpw. Transdimensional Reconstructor 32289 | -2/Section 7 | Warped through subspace 32289 | -2/Section 7 | Spotted Alpha 7 32294 | -2/Section 7 | Spotted Alpha 7 32330 | -2/Section 7 | Lost 4 parts (2u2w) 32347 | -2/Section 7 | Identified Transdimensional Reconstructor (x2) 32347 | -2/Section 7 | Warped through subspace 32398 | -2/Section 7 | Spotted Executioner 32404 | -2/Section 7 | Autoassimilated Executioner with RIF 32409 | -2/Section 7 | Spotted Executioner 32410 | -2/Section 7 | Autoassimilated Executioner with RIF 32472 | -2/Section 7 | Found Hpw. Transdimensional Reconstructor 32476 | -2/Section 7 | Found Transdimensional Reconstructor 32478 | -2/Section 7 | Found Transdimensional Reconstructor 32480 | -2/Section 7 | Found Transdimensional Reconstructor 32541 | -2/Section 7 | Destroyed Executioner 32541 | -2/Section 7 | Scanned by Researcher 32562 | -2/Section 7 | Found Prototype Device 32562 | -2/Section 7 | Identified Adv. Kinecellerator 32567 | -2/Section 7 | Found Prototype Processor 32567 | -2/Section 7 | Identified Exp. Core Analyzer 32656 | -2/Section 7 | Spotted Striker 32656 | -2/Section 7 | Spotted Striker 32674 | -2/Section 7 | Destroyed Striker 32674 | -2/Section 7 | Destroyed Striker 32691 | -2/Section 7 | Found Alien Energy Cannon 32691 | -2/Section 7 | Identified Sigix Shearcannon 32748 | -2/Section 7 | Found Alien Energy Gun 32748 | -2/Section 7 | Identified Sigix Sheargun 32752 | -2/Section 7 | Found Sigix Sheargun 32758 | -2/Section 7 | Identified Subatomic Replicator 32758 | -2/Section 7 | Used Subatomic Replicator to replicate Sigix Shearcannon 32764 | -2/Section 7 | Found Sigix Sheargun 32818 | -2/Section 7 | Spotted Striker 32818 | -2/Section 7 | Spotted Striker 32883 | -2/Section 7 | Spotted Executioner 32885 | -2/Section 7 | Spotted Executioner 32893 | -2/Section 7 | Destroyed Executioner 32895 | -2/Section 7 | Destroyed Executioner 32923 | -2/Section 7 | Destroyed Striker 32925 | -2/Section 7 | Destroyed Striker 32986 | -2/Section 7 | Build established: Scavenger-Gunner 33012 | -2/Section 7 | Intercept squad dispatched 33018 | -2/Section 7 | Warped through subspace 33135 | -2/Section 7 | Destroyed 12 combat bots 33142 | -2/Section 7 | Spotted Tracker 33153 | -2/Section 7 | Destroyed Tracker 33170 | -2/Section 7 | Found Alien Artifact 33175 | -2/Section 7 | Identified Exp. System Shield 33183 | -2/Section 7 | Discovered exit to Access (range 4) 33184 | -2/Section 7 | Spotted Tracker 33186 | -2/Section 7 | Entered Access 33186 | -1/Access | Evolved 2 slots: Power x1, Utility x1 33292 | -1/Access | Build established: Scavenger-Mutant 33393 | -1/Access | Destroyed 8 combat bots 33436 | -1/Access | First assault squad dispatched 33635 | -1/Access | Warped through subspace 33636 | -1/Access | Warped through subspace 33642 | -1/Access | Lost 5 parts (1p2u2w) 33662 | -1/Access | Found Prototype Processor 33662 | -1/Access | Identified Exp. Terrain Scan Processor 33760 | -1/Access | Found Prototype Device 33761 | -1/Access | Identified Exp. Thermal Shield 33867 | -1/Access | Garrison activated, responded to threat 34100 | -1/Access | Build established: Scavenger-Tank 34281 | -1/Access | Intercept squad dispatched 34282 | -1/Access | Spotted Tracker 34283 | -1/Access | Spotted Tracker 34296 | -1/Access | Destroyed Tracker 34298 | -1/Access | Destroyed Tracker 34323 | -1/Access | Spotted B-99 Colossus 34338 | -1/Access | Spotted Combat Programmer 34348 | -1/Access | Spotted Combat Programmer 34351 | -1/Access | System corruption reached 10% 34353 | -1/Access | Destroyed Combat Programmer 34364 | -1/Access | Destroyed Combat Programmer 34538 | -1/Access | Garrison activated, responded to threat 34568 | -1/Access | Spotted B-99 Colossus 34603 | -1/Access | Destroyed B-99 Colossus 34619 | -1/Access | Lost 5 parts (1p2u2w) 34624 | -1/Access | Destroyed 10 combat bots 34655 | -1/Access | Found Multirail 34868 | -1/Access | Lost 3 parts (3u) 35052 | -1/Access | Intercept squad dispatched 35074 | -1/Access | Spotted Tracker 35075 | -1/Access | Spotted Tracker 35079 | -1/Access | Destroyed Tracker 35090 | -1/Access | Spotted Combat Programmer 35090 | -1/Access | Destroyed Tracker 35107 | -1/Access | Destroyed Combat Programmer 35111 | -1/Access | Spotted Combat Programmer 35129 | -1/Access | Destroyed Combat Programmer 35225 | -1/Access | Build established: Scavenger-Gunner 35333 | -1/Access | Found Prototype Device 35333 | -1/Access | Identified Exp. Phase Shifter 35358 | -1/Access | Found Multirail 35377 | -1/Access | Core integrity fell below 50% 35481 | -1/Access | Found Exp. Thermal Shield 35614 | -1/Access | High security lockdown imminent 35694 | -1/Access | High security lockdown engaged 35741 | -1/Access | System corruption reached 30% 35794 | -1/Access | Destroyed 7 combat bots 35861 | -1/Access | Destroyed 8 combat bots 35891 | -1/Access | Spotted Investigator 35912 | -1/Access | Lost 3 parts (1p1n1u) 35937 | -1/Access | Destroyed Investigator 35982 | -1/Access | Sterilization system engaged 35982 | -1/Access | Destroyed 16 combat bots 35991 | -1/Access | Spotted Striker 35995 | -1/Access | Destroyed Striker 36009 | -1/Access | Spotted Striker 36011 | -1/Access | Spotted Executioner 36017 | -1/Access | Crushed by falling debris 36041 | -1/Access | Core integrity fell below 20% 36057 | -1/Access | Destroyed 7 combat bots 36060 | -1/Access | Destroyed by S-43 Plague with Heavy Machine Gun Last Messages --------------- 36041_ Centrium Leg severed. 36042_ K-01 Serf collects debris. 36042_ Slammed into Executioner. 36043_ Slug penetrates Wall. 36044_ Slammed into R-10 Processor. 36045_ R-10 Processor knocked back. 36045_ K-01 Serf collects debris. 36046_ Acquired 85 matter. 36046_ Slammed into M-36 Artificer. 36047_ Acquired 94 matter. 36048_ The unstable cave ceiling collapses. 36048_ G-73 Enforcer crushed by falling debris. 36048_ K-01 Serf collects debris. 36048_ Acquired Cesium-ion Thruster. 36049_ K-01 Serf collects debris. 36050_ U-05 Engineer builds a Wall. 36052_ K-01 Serf collects debris. 36052_ Acquired 10 matter. 36053_ K-01 Serf collects debris. 36058_ Cesium-ion Thruster destroyed. Map ----- +----------------------------------------------------+ | ""????????# #???????????????????????????? | | ?????????# #???????????????????????????? | | ?????????# #???????????????????????????? | | ?????????# #???????????????????????????? | | #####?????????########???????????????????????????? | | ?????????????????????????????????????????????????? | | ?????????????????????????????????????????????????? | | ?????????????????????????????????????????????????? | | ?????????????????????????????????#####???????????? | | ???????????????????????????????? ?????????? | | ???????????????????????????????? ????????? | | ??????????????????????????????? ???????? | | #?????????????????????????????? ???????? | | #????????????????????????????? ??????? | | #????????????????????????????? ??????? | | ###############?????????????? *] ??????? | | ## #?????????????? *] ?????? | | ## ############### ]] "?????? | | ## # "????? | | ## # "????? | | ## "" # ????? | | ## "" # ???? | | ## """""" # [ ???? | | !# """""" R ??? | | ## "" #k s !!= ??? | | ## ""= % # @ ] !!= ??? | | ##= *=%!=[ # s != ??? | | #]% *![[=*%%= # s ###########+##+########??????? | | #########+#####= *=!#????????????????????????????? | | !!/!!/%![%#=%%[! =%=# ???????????????????????????? | | #*/############* ! #????????????????????????????? | | %%%## #####???# #????????????????????????????? | | *###??????????# #????????????????????????????? | | ##????????????# #????????????????????????????? | | ?????#??#????? ????????????????????????????? | | ######?#?????# H #???????????????????????????? | | #???????????????????????????? | | #???????????????????????????? | | #???????????????????????????? | | ############## #???????????????????????????? | | #??#?????????# #???????????????????????????? | | #?#?????#????### ###???????????????????????????? | | ???#???????????? #?????????????????????????????? | | ???????????????? ??????????????????????????????? | | ######?????????? ??????????????????????????????? | | ########????????????????????????????????????? | | #?#??????????????????????????????????? | | #????????????????????????????????????? | | #????????????????????????????????????? | | ##???????????????????????????????????? | +----------------------------------------------------+ Best States ------------- Heat Dissipation 180 Coolant Potential 120 Energy Generation 77 Energy Capacity 1000 Matter Stores 300 Matter Capacity 300 Sight Range 22 Terrain Scan Range 24 Terrain Scan Density 1010 Jamming Range 14 Power Amplification 60 EM Shielding 4 Corruption Containment 12 Corruption Block 15 Armor Coverage 1800 Resistance: TH 30 Weapon Cycling 25 Melee Speed Boost 50 Phase Shifting 20 Evasion (%) 62 Targeting Accuracy 8 Target Analysis 8 Core Analysis 8 Armor Integrity Analysis 40 Recoil Reduction 6 Particle Charging 25 Kinecelleration 40 Offensive Hacking 30 Defensive Hacking 16 Relay Coupler Types 2 Relay Coupler Value 57 Item Schematics ----------------- Hyp. Coil Gun | -5/Factory | Scanalyzed Imp. Matter Neutralizer | -3/Testing | Archive Diametric Drive | -2/Quarantine | Archive Prc. Phase Gun | -2/Quarantine | Archive Adv. Thermal Defense Suite | -2/Quarantine | Archive Cld. Linear Gravjet | -2/Quarantine | Archive Cld. Antigrav System | -2/Section 7 | Archive Helical Railgun | -2/Section 7 | Archive Exp. Targeting Computer | -2/Section 7 | Archive Exp. ECM Suite | -2/Section 7 | Archive Exp. Energy Well | -2/Section 7 | Archive Exp. Cooling System | -2/Section 7 | Archive Exp. Coolant Injector | -2/Section 7 | Archive Cld. Plasma Rifle | -2/Section 7 | Archive Exp. System Shield | -2/Section 7 | Archive Adv. KE Penetrator | -2/Section 7 | Archive Exp. Core Analyzer | -2/Section 7 | Archive Robot Schematics ------------------ R-10 Processor | -2/Quarantine | Archive E-15 Imp | -2/Section 7 | Archive Fabricated ------------ Nothing Alien Tech Used ----------------- Sigix Broadsword Dimensional Node Initializer High-powered Transdimensional Reconstructor Transdimensional Reconstructor Sigix Shearcannon Sigix Sheargun Subatomic Replicator Achievements -------------- None Challenges ------------ None Game ------ Seed ThrusterAuthchipStick Manual? 0 Play Time 04:22:46 Cumulative 837.0 hours Start 2024.07.09 @ 15:50:36 End 2024.07.09 @ 20:20:45 Sessions 1 Manual Loads 0 Difficulty Rogue Special Mode None Game No. 525 Rogue 518 Adventurer 0 Explorer 7 Win Type - Total 55 Types 20/5/19/2/0/1/6/1/1 Lore% 90 Gallery% 97 Achievement% 84 Wizard Run 0 Options --------- Layout 2 ASCII 0 Keyboard 0 Movement Numpad Keybinds 0 Fullscreen 1 Font 24/Tamsyn Map View 50x44 Zoom Use 0% Tactical HUD 1 Map Filters NONE Filters NONE Steam 1 RUN: c8cbac88-04af-4482-a710-0b68b2e36567